Cogmind - Beta 15 @@@ ROGUE MODE // 2025.05.08 @ 20:50:41 Player: MolePlayingNice Result: Destroyed by 01-MTF with 01-MTF's Shockpuncher Performance ------------- Evolutions (3) 1500 Regions Visited (7) 1400 Robots Destroyed (136) 680 Value Destroyed (3341) 3341 Prototype IDs (22) 440 Alien Tech Used (0) 0 Bonus (-103) -103 TOTAL SCORE: 7258 Bonus ------- High Alert Combat Kills 152 Follower Combat Kills 282 Friendly Fire -537 Cogmind --------- Core Integrity 0/700 Matter 300/300 Energy 82/100 System Corruption 25% Temperature Cool (18) Movement Core (100) Ox1 Location -7/Recycling Parts ------- > --- POWER (1) -------- (None) > --- PROPULSION (4) --- Improved VTOL Module > --- UTILITY (6) ------ Transport Network Coupler Hacking Suite Hacking Suite System Shield > --- WEAPON (2) ------- Heavy Laser > --- INVENTORY (5) ---- Improved Flight Unit Improved Cesium-ion Thruster ECM Suite Mini Grenade Launcher Heavy Mace Peak State ------------ > --- POWER ------------ Light Nuclear Core > --- PROPULSION ------- Improved VTOL Module Improved VTOL Module Improved VTOL Module Improved VTOL Module > --- UTILITY ---------- Small Storage Unit IFF Parser Improved Light Armor Plating Hacking Suite Hacking Suite Hacking Suite > --- WEAPON ----------- Scatter Rocket Array Great Axe > --- INVENTORY -------- Light Deuterium Engine Improved Flight Unit Improved Flight Unit ECM Suite Ion Cannon Enhanced Autogun Mini Grenade Launcher Plasma Cutter [Rating: 49] Favorites ----------- Power Light Nuclear Core Engine Improved Deuterium Engine Power Core Light Nuclear Core Reactor Heavy Antimatter Reactor Propulsion Light Treads Treads Light Treads Leg Aluminum Leg Wheel Compact Wheel Hover Unit Improved Airjet Flight Unit Improved VTOL Module Utility Hacking Suite Device Advanced Heat Sink Storage High-capacity Storage Unit Processor Improved Targeting Computer Hackware Hacking Suite Protection Hardened Light Armor Plating Weapon Light Assault Rifle Energy Gun Heavy EM Shotgun Energy Cannon Ion Cannon Ballistic Gun Light Assault Rifle Ballistic Cannon Light Cannon Launcher Mini Grenade Launcher Special Weapon Plasma Cutter Impact Weapon Heavy Mace Slashing Weapon Katana Special Melee Weapon Improved Datajack Build | -11 -10 -10 -9 -8 -7 -7 -7 ------- Run | Yrd Mat Min Mat Mat Fac Sto Rec Slots Evolved 6 | . . . 2 2 2 . . Power . | . . . . . . . . Propulsion 2 | . . . 1 . 1 . . Utility 4 | . . . 1 2 1 . . Weapon . | . . . . . . . . Parts Attached 129 | . 5 4 25 46 10 16 23 Power 11 | . . 1 1 4 . 4 1 Engine 4 | . . . . 1 . 3 . Core 6 | . . 1 1 3 . 1 . Reactor 1 | . . . . . . . 1 Propulsion 39 | . 3 . 11 13 1 3 8 Treads 20 | . 2 . 11 7 . . . Leg 9 | . . . . 2 . . 7 Wheel 1 | . 1 . . . . . . Hover 1 | . . . . . . 1 . Flight 8 | . . . . 4 1 2 1 Utility 37 | . 2 2 3 13 6 6 5 Device 9 | . . 1 . 2 3 1 2 Storage 2 | . 1 . . 1 . . . Processor 3 | . . . 1 1 . 1 . Hackware 4 | . . . . 2 1 1 . Protection 19 | . 1 1 2 7 2 3 3 Artifact . | . . . . . . . . Weapon 42 | . . 1 10 16 3 3 9 Energy Gun 4 | . . . 1 1 . . 2 Energy Cannon 7 | . . . . 6 . . 1 Ballistic Gun 16 | . . . 7 6 . . 3 Ballistic Cannon 1 | . . 1 . . . . . Launcher 7 | . . . 2 2 . 3 . Special Weapon 1 | . . . . . 1 . . Impact Weapon 1 | . . . . . . . 1 Slashing Weapon 3 | . . . . 1 2 . . Piercing Weapon . | . . . . . . . . Special Melee Weapon 2 | . . . . . . . 2 Unidentified Prototypes 14 | . . . 2 4 . 7 1 Corrupted Parts 1 | . . . . . . . 1 System Corruption 7 | . . . . . . . 7 Parts Lost 33 | . . . . 9 . 9 15 Power 3 | . . . . . . 2 1 Propulsion 9 | . . . . 3 . 1 5 Utility 14 | . . . . 5 . 5 4 Weapon 7 | . . . . 1 . 1 5 Highest Loss Streak 7 | . . . . 6 . 3 7 To Critical Strikes . | . . . . . . . . Average Backups 15 | . 14 19 19 19 7 7 6 Power 1 | . 1 2 1 1 1 . . Propulsion 4 | . 7 6 4 5 2 2 1 Utility 4 | . 3 6 6 4 . . 1 Weapon 5 | . 1 4 6 7 3 3 2 Tool/Special . | . . . . . . . . Unused Backups 45 | . . 8 16 13 1 1 6 Power 4 | . . 2 2 . . . . Propulsion 15 | . . 3 6 3 . 1 2 Utility 15 | . . 3 3 4 1 . 4 Weapon 11 | . . . 5 6 . . . Tool/Special . | . . . . . . . . Average Slot Usage (%) 96 | . 93 100 98 96 98 90 91 Engine 1 | . 14 . . . . 3 4 Core 7 | . . 13 11 8 7 1 . Treads 17 | . 11 28 32 23 . . . Leg 2 | . 16 . . 2 . . 7 Flight 7 | . . . . . 29 29 21 Device 4 | . . 2 . 10 7 4 . Storage 9 | . 14 14 11 9 7 7 3 Processor 2 | . . . 10 . . 1 7 Hackware 8 | . . . . 6 23 21 23 Protection 10 | . 7 11 11 15 7 4 6 Energy Cannon 2 | . . . . 9 . . . Ballistic Gun 10 | . 28 14 19 7 . . . Ballistic Cannon 2 | . . 13 2 . . . . Slashing Weapon 2 | . . . . . 12 12 3 Peak Build Rating 49 | . 9 13 20 42 46 49 49 Average Rating 26 | . 7 11 17 30 42 40 41 On Entrance 22 | 6 6 9 12 20 38 46 41 Naked Turns . | . . . . . . . . Heaviest Build 68 | 12 50 52 54 68 20 22 30 Greatest Support 63 | 20 40 40 63 63 20 21 44 Greatest Overweight (x) 16 | . 2 1 1 16 . 3 7 Average Overweight (x) . | . 1 1 . . . . . Largest Inventory Capacity 20 | . 20 20 20 20 8 8 8 Average Capacity 16 | . 18 20 20 19 8 8 6 Most Carried 20 | . 20 20 20 20 8 8 8 Average Carried 15 | . 14 19 19 19 7 7 6 Final Capacity 20 | 8 20 20 20 8 8 8 5 Final Carried 20 | 6 20 20 20 8 8 8 5 Class Distribution -------------------- 52% | Mutant 19% | Scavenger-Mutant 16% | Hacker-Sprinter 5% | Commander-Sprinter 5% | Hacker-Mutant Dominant Class ---------------- Mutant | -10/Materials Mutant | -10/Mines Scavenger-Mutant | -9/Materials Mutant | -8/Materials Hacker-Sprinter | -7/Factory Hacker-Sprinter | -7/Storage Commander-Sprinter | -7/Recycling Resources | -11 -10 -10 -9 -8 -7 -7 -7 ----------- Run | Yrd Mat Min Mat Mat Fac Sto Rec Matter Collected 3083 | 200 144 96 767 1084 240 262 290 Remotely . | . . . . . . . . Salvage Created 5233 | . 480 132 1018 1897 164 845 697 Parts 305 | . 35 10 82 98 14 53 13 Haulers Intercepted 18 | . 1 . 5 6 1 5 . Recyclers Shooed 3 | . . . 1 . . 2 . Parts Field Recycled . | . . . . . . . . Retrieved Matter . | . . . . . . . . Parts Self-Destructed . | . . . . . . . . Prevented . | . . . . . . . . Kills | -11 -10 -10 -9 -8 -7 -7 -7 ------- Run | Yrd Mat Min Mat Mat Fac Sto Rec Combat Hostiles Destroyed 86 | . 6 5 28 32 . 12 3 Melee 14 | . . . 1 . . 12 1 Guns 39 | . 6 5 12 16 . . . Cannons 6 | . . . 1 4 . . 1 AOE 26 | . . . 14 12 . . . Classes Destroyed 14 | . 6 1 2 3 . 1 1 Worker 9 | . 3 . 3 . 3 . . Builder 2 | . . . 2 . . . . Hauler 18 | . 1 . 5 6 1 5 . Recycler 10 | . 1 . . 3 . . 6 Mechanic 1 | . . . . 1 . . . Operator 4 | . 1 . . 3 . . . Watcher 6 | . 1 . 3 . 2 . . Swarmer 25 | . . 3 15 4 . 3 . Grunt 36 | . 6 2 8 18 . 2 . Brawler 1 | . . . . 1 . . . Sentry 18 | . . . 5 8 . 5 . Hunter 1 | . . . . 1 . . . Programmer 2 | . . . . . . 2 . Scrapper 2 | . . . . . . . 2 Best Kill Streak 7 | . 5 2 5 7 2 4 6 Combat Bots Only 6 | . 2 2 4 6 . 4 1 Max Kills in Single Turn 4 | . 1 1 4 4 1 1 1 Gunslinging . | . . . . . . . . Exploded 4 | . . . 4 4 . . . Melee 1 | . . . 1 . . 1 1 Uniques/NPCs Destroyed 1 | . . . . . . . 1 KN-7UR (-7/Recycling) Combat | -11 -10 -10 -9 -8 -7 -7 -7 -------- Run | Yrd Mat Min Mat Mat Fac Sto Rec Hostile Shots Fired 725 | . 40 33 82 188 24 205 153 Missed 230 | . 18 10 18 57 12 78 37 Hits 495 | . 22 23 64 131 12 127 116 Projectile 495 | . 22 23 64 131 12 127 116 AOE 1 | . . . . . . . 1 Critical Strikes 16 | . . 1 2 8 . 3 2 Part Disruptions 9 | . . . . . . . 9 Damage Taken 7055 | . 257 302 858 2271 175 1127 2065 Core 1182 | . 34 16 109 320 11 232 460 Absorbed by Shields . | . . . . . . . . Redirected to Shielding 25 | . . . . 25 . . . Regen/Repaired (Parts) 76 | . . . . . . 76 . Core Remaining (%) 73 | 100 . 80 72 41 . . . Volleys Fired 294 | . 47 19 83 120 . . 25 Largest 2 | . 2 2 2 2 . . 2 Hottest 149 | . 40 50 50 128 . . 149 Shots Fired 546 | . 94 38 160 229 . . 25 Gun 457 | . 94 32 151 159 . . 21 Cannon 73 | . . 6 3 60 . . 4 Launcher 16 | . . . 6 10 . . . Special . | . . . . . . . . Kinetic 450 | . 94 38 154 159 . . 5 Thermal 80 | . . . . 60 . . 20 Explosive 16 | . . . 6 10 . . . Electromagnetic . | . . . . . . . . Robot Hit Streak 32 | . 8 8 13 32 . . 5 Robot Miss Streak 5 | . 4 3 4 3 . . 5 Penetration Max . | . . . . . . . . Secondary Targets 5 | . 2 . . 3 . . . Max Gunslinging Chain 1 | . 1 . . 1 . . . Shots Hit Robots 451 | . 57 24 102 169 9 45 45 Core Hits 191 | . 30 12 48 70 5 20 6 Critical Kills 1 | . . . . 1 . . . Critical Parts Destroyed 4 | . . . 1 1 . . 2 Critical Strikes 14 | . . . 1 2 1 6 4 Burn 1 | . . . . . . . 1 Destroy 3 | . . . 1 2 . . . Smash 2 | . . . . . . . 2 Sever 8 | . . . . . 1 6 1 Melee Attacks 135 | . . . . . 19 76 40 Impact 17 | . . . . . . . 17 Slashing 113 | . . . . . 19 76 18 Piercing . | . . . . . . . . Sneak Attacks 27 | . . . . . 5 8 14 Combat Hostiles 3 | . . . . . . 2 1 Follow-up Attacks 7 | . . . . . 3 4 . Damage Inflicted 11476 | . 481 229 2447 4233 593 1921 1572 Guns 4259 | . 481 190 1439 2019 . . 130 Cannons 1075 | . . 35 55 917 . . 68 Explosions 2133 | . . . 872 1261 . . . Melee 3884 | . . . . . 593 1921 1370 Ramming 125 | . . 4 81 36 . . 4 Kinetic 4273 | . 481 225 1494 2019 . . 54 Thermal 1061 | . . . . 917 . . 144 Explosive 2133 | . . . 872 1261 . . . Electromagnetic . | . . . . . . . . Impact 933 | . . . . . . . 933 Slashing 2951 | . . . . . 593 1921 437 Piercing . | . . . . . . . . Highest Corruption 25 | . . . . . 1 3 25 Average Corruption 5 | . . . . . 1 2 7 Corruption Purged . | . . . . . . . . Corruption Blocked . | . . . . . . . . Effects 39 | . . . . . . 8 31 Message Errors 9 | . . . . . . . 9 Matter Fused 6 | . . . . . . 3 3 Heat Flow Errors 4 | . . . . . . 1 3 Energy Discharges 8 | . . . . . . 2 6 Data Loss (minor) 7 | . . . . . . 1 6 Data Loss (major) 3 | . . . . . . 1 2 Alerts 1 | . . . . . . . 1 Weapon Failures 1 | . . . . . . . 1 Overload Shots . | . . . . . . . . Overflow Damage 735 | . . . 64 94 64 85 428 Projectiles 3 | . . . . 3 . . . Explosions 155 | . . . 64 91 . . . Melee 577 | . . . . . 64 85 428 Knockbacks 8 | . . . . 1 . . 7 Impact 8 | . . . . 1 . . 7 Kinetic . | . . . . . . . . Secondary . | . . . . . . . . Self-Inflicted Damage 246 | . . . . 246 . . . Shots 5 | . . . . 5 . . . Rammed 16 | . . 2 9 5 . . . Targets Rammed 19 | . . 2 11 5 . . 1 Kicked 1 | . . . . . . . 1 Crushed 2 | . . . 2 . . . . Highest Temperature 264 | . 45 123 25 230 6 116 264 Average Temperature 44 | . 12 65 8 36 6 52 93 Received Heat Transfer 2205 | . 126 168 273 1071 12 198 357 Siege Activations . | . . . . . . . . Martial Activations . | . . . . . . . . Shielding Activations . | . . . . . . . . Robots Disrupted . | . . . . . . . . Combat Hostiles . | . . . . . . . . Robots Corrupted 5 | . . . . . . . 5 Combat Hostiles 1 | . . . . . . . 1 Parts Fried 7 | . . . . . . . 7 Impact Corruptions 15 | . . . . . . . 15 Robots Melted . | . . . . . . . . Combat Hostiles . | . . . . . . . . Parts Melted 6 | . . . . 5 . . 1 Heat Transferred 2048 | . . . . 1517 . . 531 Parts Sabotaged . | . . . . . . . . Parts Stolen . | . . . . . . . . Parts Stripped . | . . . . . . . . Power Chain Reactions . | . . . . . . . . Alert | -11 -10 -10 -9 -8 -7 -7 -7 ------- Run | Yrd Mat Min Mat Mat Fac Sto Rec Maximum Alert Level 2 | . . . 2 2 1 1 . Low Security (%) 56 | . 100 100 56 . 55 69 100 Level 1 25 | . . . 32 44 44 30 . Level 2 17 | . . . 10 54 . . . Level 3 . | . . . . . . . . Level 4 . | . . . . . . . . Level 5 . | . . . . . . . . High Security . | . . . . . . . . Max Security . | . . . . . . . . Peak Influence 627 | . 73 65 491 627 302 261 126 Initial 274 | . . 8 . 206 274 51 95 Average 200 | . 21 5 220 438 174 143 33 Influence Increases 3765 | . 246 135 1037 1179 270 623 275 Destroy 0b10 Robot/C 1800 | . 120 100 620 640 20 240 60 Destroy 0b10 Robot/NC 260 | . 35 . 65 65 30 25 40 Destroy Leader 498 | . 34 20 156 172 16 100 . Allied During Kill 69 | . . . 24 . 2 . 43 Successful Hack 128 | . 12 . 36 19 17 36 8 Select Force Hacks 300 | . 30 . 60 60 30 30 90 Disable Machine 60 | . . . . 45 . 15 . Destroy Structure 200 | . . . 46 118 5 12 19 Partial Spotted 105 | . 15 . . 15 . 60 15 Lose Combat Pursuer 345 | . . 15 30 45 150 105 . Influence Decreases 3765 | . 224 157 549 1063 760 492 520 Entered New Map 839 | . . 14 . 282 330 63 150 Time Decay 2531 | . 224 143 509 691 410 260 294 Lost Part 180 | . . . . 90 . 90 . Lost Ally 136 | . . . 40 . 20 . 76 Purge Threat 79 | . . . . . . 79 . Squads Dispatched 29 | . 3 . 4 8 6 8 . Investigation 13 | . 2 . 3 3 2 3 . Extermination 5 | . . . . . 3 2 . Reinforcement 8 | . 1 . . 3 1 3 . Assault 2 | . . . 1 1 . . . Garrison 1 | . . . . 1 . . . Intercept . | . . . . . . . . Searches Triggered . | . . . . . . . . Construction Impeded 1 | . . . . 1 . . . Haulers Reinforced 3 | . . . . . . 3 . Active Scanning Responses . | . . . . . . . . Cargo Convoy Interrupts . | . . . . . . . . Stealth | -11 -10 -10 -9 -8 -7 -7 -7 --------- Run | Yrd Mat Min Mat Mat Fac Sto Rec Distress Signals 17 | . 2 . 6 4 1 4 . Communications Jammed . | . . . . . . . . Distress Signals . | . . . . . . . . Times Spotted 191 | . 21 6 41 45 20 37 21 Peak Tracking Total 9 | . 3 3 5 7 4 9 5 Tactical Retreats 27 | . . 1 2 2 4 11 7 Traps | -11 -10 -10 -9 -8 -7 -7 -7 ------- Run | Yrd Mat Min Mat Mat Fac Sto Rec Traps Triggered 6 | . 1 . 3 . 2 . . Indirectly . | . . . . . . . . Trap Hack Attempts . | . . . . . . . . Triggered . | . . . . . . . . Disarmed . | . . . . . . . . Reprogrammed . | . . . . . . . . Reused . | . . . . . . . . Traps Extracted . | . . . . . . . . Installed . | . . . . . . . . Triggered . | . . . . . . . . Machines | -11 -10 -10 -9 -8 -7 -7 -7 ---------- Run | Yrd Mat Min Mat Mat Fac Sto Rec Machines Disabled 4 | . . . . 3 . 1 . Max in Single Turn 1 | . . . . 1 . 1 . Garrison Access 4 | . . . . 1 2 1 . Machines Repaired . | . . . . . . . . Machines Dismantled . | . . . . . . . . Machines Sabotaged . | . . . . . . . . Overloaded Fab Kills . | . . . . . . . . Hacking | -11 -10 -10 -9 -8 -7 -7 -7 --------- Run | Yrd Mat Min Mat Mat Fac Sto Rec Machines Accessed 52 | . 3 . 10 9 11 12 7 Terminals 32 | . 2 . 7 6 5 8 4 Fabricators 2 | . . . . . 2 . . Repair Stations 2 | . . . . . . 2 . Recycling Units 10 | . 1 . 2 2 1 1 3 Scanalyzers 2 | . . . 1 . 1 . . Garrison Access 4 | . . . . 1 2 1 . Total Hacks 136 | . 7 . 39 21 22 30 17 Successful 69 | . 3 . 21 9 13 13 10 Failed 67 | . 4 . 18 12 9 17 7 Catastrophic 8 | . 1 . . . 2 3 2 Database Lockouts . | . . . . . . . . Manual 67 | . 4 . 19 14 7 11 12 Terminals 96 | . 6 . 29 15 13 19 14 Fabricators 3 | . . . . . 3 . . Repair Stations 6 | . . . . . . 6 . Recycling Units 16 | . 1 . 4 4 1 3 3 Scanalyzers 9 | . . . 6 . 3 . . Garrison Access 6 | . . . . 2 2 2 . Terminal Hacks 27 | . 2 . 7 5 3 8 2 Robot Analysis 1 | . . . . . . . 1 Open Door 4 | . . . . . . 4 . Branch Access Points 1 | . . . . . 1 . . Emergency Access Points 1 | . . . . 1 . . . Unreport Threat 1 | . . . . . . 1 . Locate Traps 1 | . . . 1 . . . . Transport Status 1 | . . . . 1 . . . Hauler Manifests 2 | . . . 1 1 . . . Registered Components 3 | . 1 . 1 . 1 . . Registered Prototypes 4 | . . . 1 1 1 1 . Zone Layout 8 | . 1 . 3 1 . 2 1 Fabricator Hacks 3 | . . . . . 3 . . Network Status 1 | . . . . . 1 . . Build 2 | . . . . . 2 . . Repair Station Hacks 3 | . . . . . . 3 . Scan Component 2 | . . . . . . 2 . Repair 1 | . . . . . . 1 . Recycling Unit Hacks . | . . . . . . . . Scanalyzer 9 | . . . 6 . 3 . . Insert Component 5 | . . . 3 . 2 . . Analyze 4 | . . . 3 . 1 . . Garrison Access Hacks 4 | . . . . 1 2 1 . Seal Access 4 | . . . . 1 2 1 . Unauthorized Hacks 23 | . 1 . 8 3 2 1 8 Terminals 13 | . . . 6 1 1 . 5 Botnet 4 | . . . 2 . 1 . 1 Skim 9 | . . . 4 1 . . 4 Fabricators . | . . . . . . . . Repair Stations . | . . . . . . . . Recycling Units 10 | . 1 . 2 2 1 1 3 Tunnel 10 | . 1 . 2 2 1 1 3 Scanalyzers . | . . . . . . . . Garrison Access . | . . . . . . . . Data Cores Recovered 1 | . . . . 1 . . . Used . | . . . . . . . . Hacking Detections 38 | . 2 . 9 8 7 8 4 Full Trace Events 5 | . 1 . 1 . 1 2 . Feedback Events . | . . . . . . . . Feedback Blocked . | . . . . . . . . Robot Schematics Acquired . | . . . . . . . . Robots Built 3 | . . . . . 3 . . Authchips . | . . . . . . . . Time 67 | . . . . . 67 . . Total Robot Build Rating 12 | . . . . . 12 . . Part Schematics Acquired 4 | . . . 3 . 1 . . Parts Built 2 | . . . . . 2 . . Authchips . | . . . . . . . . Time 95 | . . . . . 95 . . Total Part Build Rating 10 | . . . . . 10 . . Parts Repaired 1 | . . . . . . 1 . Time 19 | . . . . . . 19 . Parts Recycled . | . . . . . . . . Recycled Matter . | . . . . . . . . Retrieved Matter . | . . . . . . . . Retrieved Components . | . . . . . . . . Parts Scanalyzed 4 | . . . 3 . 1 . . Part Schematics Acquired 4 | . . . 3 . 1 . . Parts Damaged . | . . . . . . . . Bothacking | -11 -10 -10 -9 -8 -7 -7 -7 ------------ Run | Yrd Mat Min Mat Mat Fac Sto Rec Used RIF Installer . | . . . . . . . . Robots Hacked 1 | . . . . . . . 1 Non-combat . | . . . . . . . . Combat 1 | . . . . . . . 1 Robot Hacks Applied 1 | . . . . . . . 1 parse_system 1 | . . . . . . . 1 Relay Couplers Released . | . . . . . . . . Fabnet Peak Effective % . | . . . . . . . . Robots Rewired 10 | . . . . . 2 . 8 Allies Hacked . | . . . . . . . . Hacks Repelled . | . . . . . . . . Allies | -11 -10 -10 -9 -8 -7 -7 -7 -------- Run | Yrd Mat Min Mat Mat Fac Sto Rec Total Allies 25 | . . 2 . . 5 10 8 Largest Group 15 | . . 2 2 . 3 10 15 Highest-Rated Group 267 | . . 44 44 . 90 173 267 Highest-Rated Ally 32 | . . 31 31 . 32 29 32 Total Orders 3 | . . . . . . . 3 STAY 1 | . . . . . . . 1 GUARD 1 | . . . . . . . 1 COLLECT 1 | . . . . . . . 1 Ally Attacks 71 | . . . 12 . 8 . 51 Total Damage 1068 | . . . 189 . 129 . 750 Kills 9 | . . . 3 . 1 . 5 Allies Corrupted . | . . . . . . . . Allies Melted . | . . . . . . . . Intel | -11 -10 -10 -9 -8 -7 -7 -7 ------- Run | Yrd Mat Min Mat Mat Fac Sto Rec Active Infowar (turns) 2564 | . . . . 74 838 441 1211 Optics 74 | . . . . 74 . . . Sensors 86 | . . . . . 86 . . IFF 280 | . . . . . 142 138 . Seismic 610 | . . . . . 610 . . T.N.C. 1329 | . . . . . . 118 1211 ECM 185 | . . . . . . 185 . Robot Analysis Total 1 | . . . . . . . 1 Derelict Logs Recovered 1 | . . 1 . . . . . Drone Launches . | . . . . . . . . Drone Recoveries . | . . . . . . . . Exploration | -11 -10 -10 -9 -8 -7 -7 -7 ------------- Run | Yrd Mat Min Mat Mat Fac Sto Rec Turns Passed 9586 | . 748 1586 1647 2817 992 585 1211 Spaces Moved 6534 | 1 278 629 791 1116 1797 767 1155 Core 4 | . . . . 1 . . 3 Treads 2527 | . 97 629 791 1010 . . . Legs 485 | 1 181 . . 100 . . 203 Wheels . | . . . . . . . . Hover . | . . . . . . . . Flight 3518 | . . . . 5 1797 767 949 Fastest Speed 26 | 120 120 240 160 29 26 26 27 Average Speed 108 | 120 213 240 164 208 26 28 58 Slowest Speed 850 | 120 320 240 240 850 26 245 400 Overloaded Moves . | . . . . . . . . Propulsion Burnouts . | . . . . . . . . Robots Hopped 42 | . . . . . 13 14 15 Potential Cave-ins . | . . . . . . . . Cave-ins Triggered . | . . . . . . . . Exploration Rate (%) 66 | 1 53 97 77 85 34 87 98 Regions Visited 7 Branch Regions 3 Pre-discovered Areas 13 | . 1 2 2 2 1 2 3 Known Exits Taken 1 | . . . . . 1 . . Unknown Exits Taken 6 | 1 1 1 1 1 . 1 . Scrap Searched 3 | . . 3 . . . . . Spaces Dug 100 | . . . 46 35 5 12 2 Terrain Destroyed 168 | . . . 46 103 5 12 2 Melee 19 | . . . . . 5 12 2 Projectile 2 | . . . . 2 . . . AOE 147 | . . . 46 101 . . . Terrain Rammed . | . . . . . . . . Walls Destroyed . | . . . . . . . . Machines Disabled . | . . . . . . . . Actions | -11 -10 -10 -9 -8 -7 -7 -7 --------- Run | Yrd Mat Min Mat Mat Fac Sto Rec Total 8296 | . 358 675 990 1409 2279 994 1591 Wait 940 | . 15 7 22 29 428 127 312 Move 6447 | . 277 628 791 1115 1771 739 1126 Hop 39 | . . . . . 12 13 14 Pick Up 75 | . 12 5 19 26 4 5 4 Fast Attach 79 | . 3 2 7 23 6 19 19 Attach 12 | . . . 1 3 3 3 2 Detach 9 | . 2 1 . 1 2 . 3 Swap 68 | . 2 2 21 28 6 3 6 Drop 146 | . . 9 36 59 9 16 17 Fire 294 | . 47 19 83 120 . . 25 Melee 125 | . . . . . 16 69 40 Ram . | . . . . . . . . Kick 1 | . . . . . . . 1 Crush 17 | . . 2 10 5 . . . Escape Stasis 18 | . . . . . 18 . . Rewire 26 | . . . . . 4 . 22 Trap . | . . . . . . . . Miscellaneous . | . . . . . . . . Route ------- -11/Scrapyard -10/Materials (discovered 2 exits: *Mat / [*Min]) -10/Mines (discovered 2 exits: *Mat x2) -9/Materials (discovered 3 exits: *Mat x2 / [*Min]) -8/Materials (discovered 2 exits: *Fac x2) -7/Factory (discovered 4 exits: [*Fac] / *Sto / Low x2) -7/Storage (discovered 2 exits: [*Fac] / *Rec) -7/Recycling (discovered 1 exit: [*Fac]) History --------- Turn | Location | Event 1 | -11/Scrapyard | Discovered new exit (range 0) 1 | -11/Scrapyard | Entered Materials 163 | -10/Materials | Discovered new exit (range 8) 306 | -10/Materials | Build established: Mutant 309 | -10/Materials | Discovered new exit (range 11) 749 | -10/Materials | Entered Mines 966 | -10/Mines | Discovered new exit (range 7) 971 | -10/Mines | Discovered new exit (range 7) 1117 | -10/Mines | Deemed a non-threat by the Exiles lab entrance 1198 | -10/Mines | Received a Rocket Launcher from a helpful Derelict 1457 | -10/Mines | Found a Scrap Suit stashed away for nefarious purposes 1463 | -10/Mines | Found Scrap Suit 1909 | -10/Mines | Learned location of Storage (-7) 2335 | -10/Mines | Entered Materials 2335 | -9/Materials | Accompanied by 2 allies 2335 | -9/Materials | Evolved 2 slots: Propulsion x1, Utility x1 2340 | -9/Materials | Led the pair of lost Derelicts to an unsafe place 2684 | -9/Materials | Discovered new exit (range 14) 3012 | -9/Materials | Discovered new exit (range 14) 3180 | -9/Materials | Build established: Scavenger-Mutant 3923 | -9/Materials | Discovered new exit (range 7) 3935 | -9/Materials | First assault squad dispatched 3982 | -9/Materials | Entered another Materials area 3982 | -8/Materials | Evolved 2 slots: Utility x2 3983 | -8/Materials | Build established: Mutant 4204 | -8/Materials | Garrison activated, responded to threat 4294 | -8/Materials | Build established: Scavenger-Mutant 4347 | -8/Materials | Lost 6 parts (3n2u1w) 4753 | -8/Materials | Discovered new exit (range 19) 5088 | -8/Materials | Met 7R-MNS 5322 | -8/Materials | Build established: Mutant 5392 | -8/Materials | Discovered new exit (range 15) 5797 | -8/Materials | Core integrity fell below 50% 6782 | -8/Materials | First assault squad dispatched 6799 | -8/Materials | Entered Factory 6799 | -7/Factory | Evolved 2 slots: Propulsion x1, Utility x1 6800 | -7/Factory | Caught up to 7R-MNS 7018 | -7/Factory | Discovered new exit (range 12) 7076 | -7/Factory | Build established: Hacker-Sprinter 7558 | -7/Factory | Discovered new exit (range 14) 7648 | -7/Factory | Fabricated IFF Parser (x2) 7709 | -7/Factory | Identified exit to Storage 7709 | -7/Factory | Identified exit to Lower Caves 7766 | -7/Factory | Fabricated L-41 Fighter? 7791 | -7/Factory | Entered Storage 7796 | -7/Storage | Found Prototype Launcher 7796 | -7/Storage | Identified Scatter Rocket Array 7882 | -7/Storage | Repaired Imp. Light Armor Plating 8166 | -7/Storage | Lost 3 parts (1p2u) 8177 | -7/Storage | Discovered new exit (range 8) 8283 | -7/Storage | Met 01-MTF 8284 | -7/Storage | Found Prototype Launcher 8284 | -7/Storage | Identified Rocket Array 8346 | -7/Storage | Used back door to open Recycling access 8346 | -7/Storage | Discovered new exit (range 5) 8350 | -7/Storage | Assisted by bots powering up and referring to "LRC-V3" 8376 | -7/Storage | Entered Recycling 8376 | -7/Recycling | Accompanied by 12 allies (01-MTF) 8533 | -7/Recycling | Discovered new exit (range 5) 8649 | -7/Recycling | Lost 3 allies 8914 | -7/Recycling | Scanned before Scraplab entrance 8934 | -7/Recycling | Angered Scraplab inhabitants 8988 | -7/Recycling | Core integrity fell below 50% 9018 | -7/Recycling | Lost 3 parts (1u2w) 9020 | -7/Recycling | Lost 14 allies 9076 | -7/Recycling | Destroyed KN-7UR 9081 | -7/Recycling | System corruption reached 10% 9385 | -7/Recycling | Build established: Hacker-Mutant 9576 | -7/Recycling | Core integrity fell below 20% 9587 | -7/Recycling | Destroyed by 01-MTF with 01-MTF's Shockpuncher Last Messages --------------- 09510_ Acquired Imp. Heat Sink. 09511_ System corrupted: Energy discharge (-132). 09516_ Acquired 10 matter. 09533_ System corrupted: Component data lost. 09542_ Centrium Light Armor Plating destroyed. 09542_ Ovr. Pulse Rifle suddenly begins malfunctioning. 09548_ System corrupted: Energy discharge (-98). 09552_ Aluminum Leg destroyed. 09552_ Ovr. Pulse Rifle destroyed. 09565_ Ovr. Titanium Leg destroyed. 09567_ Destroyed Mak. Cloaking Device. 09571_ Carbon-fiber Leg destroyed. 09573_ System corrupted: Hvy. Laser failed to cycle. 09579_ Imp. Heat Sink destroyed. 09585_ 01-MTF suffers critical hit (Burn). 09585_ Hvy. Antimatter Reactor destroyed. 09587_ Destroyed Mni. Fusion Reactor. Map ----- +----------------------------------------------------+ | ???????????????????????????????????????????? | | ???????????????????????????????????????????? | | ???????????????????????????????????????????? | | ???????????????????????????????????????????? | | ???????????????????????????????????????????? | | ???????????????????????????????????????????? | | ???????????????????????????????????????????? | | ???????????????????????????????????????????? | | ???????????????????????????????????????????? | | ???????????????????????????????????????????? | | ???????????????????????????????????????????? | | ?????????###########???????????????????????? | | ?????????# #???????????????????????? | | ?????????# #???????????????????????? | | ?????????# ##??????????????????????? | | ?????????# #??????????????????????? | | ????????## #???????????????????????? | | ????????# #???????????????????????? | | ?????????# #???????????????????????? | | #????????# #???????????????????????? | | ##############+######???????######?????????? | | #?####### #?????????? | | < #?# # #! #??###????? | | #########= !=#### ##???? | | ######+##+######## #=p%/ [=% =!= #???? | | """ "#???# #?# #@###* *!##### #???? | | """ "#???# #??# #!# # #???# #???? | | """ "#???# #??#=#*#?# #???# #???? | | T#???# #??###%########???# #???? | | "#???# ####=#=##?????????#/#???? | | """ "#???# + == %%###???????? ???? | | """ "#???# # % ==%][#???????? ???? | | """ ##???# # =%%[[!#??????? ??? | | #????# + !== =#??????? X??? | | #????####+####### =###??????& "?? | | #+##+####????# #?????# %###?????? ""?? | | ! #????# #?????# #???????"X "#? | | #????# #?????# #???????" ##?? | | % % #?####!####### #??????# "" #??? | | ] #?# =%= #??????? ?"" ??? | | ! ! %#?# * ####+##+#####???????###??? | | ! %#?#/ [[ # #????????????? | | *% #?#%[%!! + % != #????????????? | | #########?#/!###### ! #????????????? | | ?##?#"#??## #????# =% %!#????????????? | | ## ## #??#!! #????# #????????????? | | !%#### %=#????# [ #????????????? | | + ! #????#############????????????? | | #### #?????????????????????????????? | | #??# ######????????????????????????? | +----------------------------------------------------+ Best States ------------- Heat Dissipation 83 Energy Generation 25 Energy Capacity 340 Matter Stores 300 Matter Capacity 300 Sight Range 20 Robot Scan Range 15 Terrain Scan Density 10 ECM Strength 1 Armor Coverage 300 Propulsion Shielding 66 Evasion (%) 64 Targeting Accuracy 6 Recoil Reduction 3 Kinecelleration 30 Offensive Hacking 30 Defensive Hacking 10 Authchip Count 3 Item Schematics ----------------- Imp. Flight Unit | -9/Materials | Scanalyzed Hacking Suite | -9/Materials | Scanalyzed Plasma Cutter | -9/Materials | Scanalyzed ECM Suite | -7/Factory | Scanalyzed Robot Schematics ------------------ None Fabricated ------------ IFF Parser | x2 | -7/Factory | Preloaded L-41 Fighter | x3 | -7/Factory | Preloaded Repaired ---------- Imp. Light Armor Plating | 57% | -7/Storage Alien Tech Used ----------------- None Achievements -------------- None Challenges ------------ None Game ------ Seed OmegaBiometalPlating Manual? 0 Play Time 01:15:13 Cumulative 208.6 hours Start 2025.05.08 @ 19:36:58 End 2025.05.08 @ 20:50:41 Sessions 1 Manual Loads 0 Difficulty Rogue Special Mode None Game No. 76 Rogue 76 Adventurer 0 Explorer 0 Win Type - Total 4 Types 1/0/2/0/0/0/0/0/0/1 Lore% 66 Gallery% 74 Achievement% 69 Wizard Run 0 Options --------- Layout 1 ASCII 0 Keyboard 1 Movement Arrows Keybinds 0 Fullscreen 2 Font 24/Smallcaps Map View 50x35 Zoom Use 0% Tactical HUD 1 Map Filters NONE Filters NONE Steam 1 RUN: a4bd081b-2120-4314-8640-861df02dd0df